bitfinex/quotes_ETHUSD_20250622
["timestamp","ask_amount","ask_price","bid_price","bid_amount"]
[1750606580462,0.14259685,2194.3,2193.9,4.55807987]
[1750606580666,8.32,2194.5,2194.1,4.55753414]
[1750606580862,0.1425895,2194.4,2193.9,4.55789116]
[1750606581054,0.14258776,2194.3,2194.0,7.02477705]
[1750606581257,8.32,2194.5,2194.0,7.02477705]
[1750606581458,1.13297216,2194.4,2193.8,4.55820888]
[1750606581773,1.5949,2194.2,2193.6,1.5372]
[1750606581935,1.5949,2194.2,2193.7,4.55850806]
[1750606581936,0.14259216,2194.1,2193.7,4.55850806]
[1750606582132,8.315,2194.0,2193.7,4.55850806]
[1750606582389,8.315,2194.0,2193.9,4.55809289]
[1750606582683,0.99038,2194.4,2194.0,4.5577875]
[1750606582684,9.9099,2194.4,2194.0,4.5577875]
[1750606582982,0.14259285,2194.3,2194.0,4.5577875]
[1750606583275,0.14259178,2194.2,2194.0,4.5577875]
[1750606583480,9.9099,2194.4,2194.0,4.5577875]
[1750606583771,0.1425918,2194.3,2194.0,4.5577875]
[1750606583975,0.1425918,2194.2,2194.0,4.5577875]
[1750606584132,9.9099,2194.4,2193.9,4.55798698]
[1750606584438,0.14259332,2194.3,2194.0,4.55785483]
[1750606584638,9.9099,2194.4,2194.2,4.55737679]
[1750606584841,0.14258575,2194.3,2194.2,4.55737679]
[1750606585664,0.14258852,2194.3,2194.2,4.55737679]
[1750606585857,0.14258688,2194.3,2194.2,4.55737679]
[1750606586061,0.14258637,2194.3,2194.2,4.55737679]
[1750606586264,0.14258637,2194.3,2194.2,5.51445095]
[1750606586581,2.42396818,2194.8,2194.7,4.5564314]
[1750606586876,2.56653487,2194.8,2194.7,4.5564314]
[1750606587047,2.42396818,2194.8,2194.7,6.61383341]
[1750606587242,8.308,2195.6,2195.1,4.55549793]
[1750606587438,1.13112664,2195.5,2195.2,0.04554911]
[1750606587772,1.13112664,2195.5,2194.7,6.56825829]
[1750606587773,1.578,2195.3,2194.8,7.0232238]
[1750606587980,1.578,2195.3,2194.9,4.55590414]
[1750606588352,1.578,2195.3,2194.9,4.60145973]
[1750606588671,1.578,2195.3,2194.9,4.60146509]
[1750606588973,2.5665,2195.3,2194.9,0.04555559]
[1750606589274,9.885,2195.5,2194.9,4.60155454]
[1750606589485,1.578,2195.5,2194.9,0.04555559]
[1750606589777,4.55337953,2196.2,2194.9,0.04555559]
[1750606589778,8.306,2195.6,2195.3,4.55516033]
[1750606589937,9.882,2195.7,2195.2,4.55528815]
[1750606590133,9.882,2195.7,2195.2,4.60083686]
[1750606590338,10.8702,2195.7,2195.3,4.55516454]
[1750606590739,2.5662,2195.7,2195.0,4.55580865]
[1750606590952,1.578,2195.7,2195.1,0.04554705]
[1750606591178,1.578,2195.7,2195.4,4.55486551]
[1750606591377,1.578,2195.7,2195.1,0.04554705]
[1750606591378,1.578,2195.7,2195.5,4.55460851]
[1750606591606,1.578,2195.7,2195.1,6.15204256]
[1750606591607,1.6338,2196.0,2195.7,4.55433633]
[1750606591901,1.6338,2196.0,2195.6,4.55447108]
[1750606592405,1.6338,2196.0,2195.6,4.55446587]
[1750606592607,1.6338,2196.0,2195.7,4.55433617]
[1750606593301,8.301,2196.2,2195.8,4.55402553]
[1750606593502,0.8301,2196.2,2195.6,1.5965]
[1750606593808,0.8301,2196.2,2195.7,4.55434885]
[1750606594113,0.8301,2196.2,2195.6,4.55445825]
[1750606594605,1.6338,2196.1,2195.3,1.5965]
[1750606594807,1.6338,2195.9,2195.2,4.55538105]
[1750606595009,0.55,2195.8,2195.1,2.466]
[1750606595209,1.6338,2195.7,2195.1,7.02159054]
[1750606595715,1.6338,2195.7,2195.1,7.02151306]
[1750606596026,14.55440188,2195.7,2194.8,6.15260987]
[1750606596330,2.56722013,2195.6,2194.9,4.55597856]
[1750606596825,2.56722013,2195.6,2194.7,6.99732223]
[1750606596826,1.5718,2195.4,2194.7,6.99732223]
[1750606597004,8.292,2195.3,2194.7,6.99742433]
[1750606597169,8.292,2195.3,2194.7,6.99732757]
[1750606597374,8.292,2195.3,2194.8,4.55610791]
[1750606597624,8.292,2195.3,2194.7,6.99732757]
[1750606597625,9.1221,2195.3,2194.9,4.5559886]
[1750606597826,8.292,2195.3,2194.8,0.04555888]
[1750606598129,1.5718,2195.4,2194.7,2.441]
[1750606598409,1.5718,2195.4,2195.1,4.55559336]
[1750606598587,1.5718,2195.4,2194.9,4.55600672]
[1750606598777,1.5718,2195.4,2194.8,6.99711992]
[1750606599178,1.5718,2195.4,2194.8,4.55611992]
[1750606599412,1.5718,2195.4,2194.7,2.441]
[1750606599413,3.35408,2195.4,2194.7,2.441]
[1750606599596,1.5718,2195.4,2195.0,4.55570647]
[1750606599924,1.5718,2195.4,2194.7,6.9973901]
[1750606600226,1.5718,2195.4,2194.9,4.55598989]
[1750606600584,1.5718,2195.4,2194.7,2.441]
[1750606600915,1.5718,2195.4,2194.7,16.99733261]
[1750606601276,1.5718,2195.4,2194.8,4.55610474]
[1750606601478,3.80953676,2195.4,2194.9,4.55598495]
[1750606601678,3.80953676,2195.4,2194.8,4.55611593]
[1750606601979,3.80953676,2195.4,2194.7,16.99733681]
[1750606602172,3.80953676,2195.4,2194.7,12.441]
[1750606602515,0.38095368,2195.3,2194.7,16.99731346]
[1750606602682,1.5718,2195.4,2194.7,14.55640632]
[1750606603705,1.5718,2195.4,2194.4,2.441]
[1750606603706,0.55,2195.1,2194.4,2.441]
[1750606603892,0.55,2194.9,2194.3,2.441]
[1750606604217,1.5834,2194.9,2194.3,6.99823611]
[1750606604600,1.5834,2194.9,2194.3,10.0]
[1750606604777,1.5834,2194.9,2194.3,14.55725415]
[1750606605418,1.5834,2194.9,2194.3,4.55725415]
[1750606605591,1.0334,2194.9,2194.3,4.55725415]
[1750606606509,1.0334,2194.9,2194.2,6.99837829]
[1750606606716,1.6634,2194.7,2194.1,10.0]
[1750606606885,1.6634,2194.7,2194.2,10.0]
[1750606607211,1.6634,2195.0,2194.3,0.04557319]
[1750606607417,4.55572083,2195.1,2194.2,14.55740491]
[1750606607418,0.55,2194.8,2194.2,14.55740491]
[1750606607619,1.6634,2194.7,2194.2,14.55740491]
[1750606607819,1.6634,2194.7,2194.1,2.441]
[1750606608184,1.6634,2194.7,2194.2,0.04557151]
[1750606608396,1.6634,2194.7,2194.4,4.55690591]
[1750606609608,1.6634,2194.7,2194.5,4.55684493]
[1750606609814,1.6634,2194.7,2194.4,5.46836807]
[1750606610041,1.6634,2194.7,2194.3,4.55716066]
[1750606610208,1.6634,2194.7,2194.4,4.55704039]
[1750606610610,1.6634,2194.7,2194.5,4.55680171]
[1750606610812,1.6634,2194.7,2194.2,4.0586]
[1750606611057,8.278,2194.9,2194.2,4.0586]
[1750606611058,9.938,2194.9,2194.3,0.04556485]
[1750606611261,9.938,2194.9,2194.7,4.55631223]
[1750606611552,1.66,2194.9,2194.8,4.5562238]
[1750606611761,9.933,2195.1,2194.8,4.5562238]
[1750606611963,1.66,2195.1,2194.9,4.55588662]
[1750606612109,2.441,2195.7,2194.4,10.0]
[1750606612110,8.272,2195.2,2194.7,1.6176]
[1750606612448,1.66,2195.1,2194.7,4.55635405]
[1750606613449,1.66,2195.1,2194.8,4.55618506]
[1750606613745,1.66,2195.1,2194.9,4.55597243]
[1750606613956,1.66,2195.1,2194.8,4.55612016]
[1750606614154,1.66,2195.1,2194.7,5.87347796]
[1750606614720,1.66,2195.1,2194.5,4.55676574]
[1750606614926,1.66,2195.1,2194.6,2.441]
[1750606615123,1.66,2195.1,2194.4,14.55688696]
[1750606615324,0.14255772,2195.0,2194.4,16.99788696]
[1750606615626,1.6586,2194.9,2194.5,4.55674289]
[1750606616326,1.6586,2194.9,2194.4,14.55696353]
[1750606616647,1.6586,2194.9,2194.5,4.55684433]
[1750606616852,1.6586,2194.9,2194.4,14.55694024]
[1750606617025,1.6586,2194.9,2194.5,4.55683351]
[1750606617413,1.6586,2194.9,2194.5,6.55485125]
[1750606617855,1.6586,2194.9,2194.4,14.55695489]
[1750606618023,1.6586,2194.9,2194.4,10.0]
[1750606618228,1.6586,2194.9,2194.5,4.55683544]
[1750606618546,1.6586,2194.9,2194.4,4.55698727]
[1750606618755,1.6586,2194.9,2194.5,4.55682478]
[1750606619319,1.6586,2194.9,2194.6,4.5565883]
[1750606619849,1.6586,2195.1,2194.6,4.55652605]
[1750606620031,1.6586,2195.1,2194.4,6.16166799]
[1750606620032,1.6586,2195.1,2194.5,4.55674349]
[1750606620238,0.1425538,2195.0,2194.5,4.55674349]
[1750606620439,1.6586,2195.1,2194.3,10.0]
[1750606620644,1.5262,2194.9,2194.3,14.55710231]
[1750606620825,2.4890757,2194.9,2194.3,14.55710231]
[1750606621016,2.4890757,2194.9,2194.5,4.55672292]
[1750606621218,2.4890757,2194.9,2194.3,10.0]
[1750606621219,1.5262,2194.9,2194.3,12.441]
[1750606621417,1.5262,2194.9,2194.6,4.55648956]
[1750606621617,9.4862,2195.1,2194.5,4.5568452]
[1750606621853,9.4862,2195.1,2194.6,0.04556114]
[1750606622149,9.4862,2195.1,2194.7,4.55623741]
[1750606622323,9.4862,2195.1,2194.8,4.55621005]
[1750606623357,1.5262,2195.4,2194.6,2.441]
[1750606623526,0.14254046,2195.3,2195.0,4.55578691]
[1750606623734,0.14254046,2195.2,2194.9,4.55592292]
[1750606623932,9.7822,2195.4,2195.0,4.55579207]
[1750606624228,0.14253607,2195.3,2195.0,4.55579207]
[1750606624533,0.14253607,2195.2,2195.0,4.55579207]
[1750606624728,9.7822,2195.4,2194.9,4.55584848]
[1750606625055,0.14253609,2195.3,2194.9,4.55584848]
[1750606625222,0.14253609,2195.2,2195.0,4.55575585]
[1750606625423,9.7792,2195.4,2195.0,4.55575585]
[1750606625725,0.14253468,2195.3,2194.7,16.97136279]
[1750606625926,1.5755,2195.1,2194.7,14.55636279]
[1750606626118,1.5755,2195.1,2194.7,10.0]
[1750606626455,0.142558,2195.0,2194.3,14.55713277]
[1750606626656,8.39355811,2194.9,2194.4,4.55704882]
[1750606626856,8.39355811,2194.9,2194.3,4.557129]
[1750606626857,0.14256361,2194.8,2194.3,4.557129]
[1750606627057,8.251,2194.9,2194.4,10.0]
[1750606627356,0.14256526,2194.8,2194.6,4.5565734]
[1750606627525,8.251,2194.9,2194.5,4.55672912]
[1750606627725,0.14256121,2194.8,2194.5,4.55672912]
[1750606627956,8.251,2194.9,2194.5,4.55672912]
[1750606628261,0.14255851,2194.8,2194.5,4.55672912]
[1750606628423,8.251,2194.9,2194.6,4.5565871]
[1750606628622,0.14255769,2194.8,2194.6,4.5565871]
[1750606628862,8.251,2194.9,2194.6,4.5565871]
[1750606629157,0.14255428,2194.8,2194.6,4.55660884]
[1750606629320,8.251,2194.9,2194.6,4.55660884]
[1750606629521,0.14255535,2194.8,2194.6,4.55660884]
[1750606629717,8.251,2194.9,2194.6,4.55649279]
[1750606630057,8.251,2194.9,2194.7,4.5564314]
[1750606630555,8.251,2194.9,2194.6,1.1528291]
[1750606630919,8.251,2194.9,2194.6,5.70943019]
[1750606631119,8.251,2194.9,2194.7,4.55633117]
[1750606631432,8.251,2194.9,2194.7,4.55642474]
[1750606631433,0.14254779,2194.8,2194.7,4.55642474]
[1750606631639,9.5355,2195.1,2194.8,4.5562238]
[1750606631853,0.14254362,2195.0,2194.8,4.5562238]
[1750606632034,0.14254362,2194.9,2194.8,4.5562238]
[1750606632242,0.14254362,2194.9,2194.6,16.13823801]
[1750606632437,7.96,2195.1,2194.7,4.55629815]
[1750606632634,0.14254668,2195.0,2194.6,16.1382412]
[1750606632840,7.96,2195.1,2194.6,16.1382412]
[1750606632841,0.14254668,2194.9,2194.6,10.0]
[1750606633039,0.1425529,2194.8,2194.6,10.0]
[1750606633239,7.96,2195.1,2194.6,10.0]
[1750606633565,1.6206,2195.0,2194.6,10.0]
[1750606633766,1.70395462,2194.9,2194.4,4.5569466]
[1750606634063,0.14255462,2194.8,2194.6,4.5565874]
[1750606634268,1.5614,2194.9,2194.5,14.55672327]
[1750606634426,0.1425546,2194.8,2194.5,14.55672327]
[1750606634626,1.5614,2194.9,2194.5,14.55672327]
[1750606634827,0.14255456,2194.8,2194.5,14.55672327]
[1750606635129,1.5614,2194.9,2194.5,14.55672327]
[1750606635329,0.1425549,2194.8,2194.6,4.55661028]
[1750606635551,1.5614,2194.9,2194.7,4.55639674]
[1750606635758,8.24,2194.9,2194.7,6.01205777]
[1750606636025,8.24,2194.9,2194.7,4.55639674]
[1750606636460,0.14255046,2194.8,2194.7,4.55639674]
[1750606636765,0.14255044,2194.8,2194.5,14.55674799]
[1750606636963,8.24,2194.9,2194.5,14.55674799]
[1750606637261,0.14255337,2194.8,2194.6,4.55661905]
[1750606637431,8.24,2194.9,2194.6,4.55661905]
[1750606637632,0.14255347,2194.8,2194.6,4.55661905]
[1750606637832,8.24,2194.9,2194.6,4.55661905]
[1750606638033,0.14255245,2194.8,2194.6,4.55661905]
[1750606638233,8.24,2194.9,2194.6,4.55661905]
[1750606638428,8.24,2194.9,2194.7,4.55635623]
[1750606638645,8.24,2194.9,2194.5,14.55678522]
[1750606638646,8.24,2194.9,2194.6,4.55652348]
[1750606639157,8.24,2194.9,2194.5,14.55672744]
[1750606639361,0.14255262,2194.8,2194.5,16.8677743]
[1750606639662,8.24,2194.9,2194.5,16.8677743]
[1750606639854,0.14255397,2194.8,2194.5,14.55672744]
[1750606640067,8.24,2194.9,2194.5,14.55672744]
[1750606640267,0.14255307,2194.8,2194.5,14.55672744]
[1750606640571,8.232,2194.9,2194.5,14.55672744]
[1750606640778,0.14255058,2194.8,2194.5,14.55672744]
[1750606641077,8.232,2194.9,2194.5,16.86777195]
[1750606641280,0.1425526,2194.8,2194.5,16.86777195]
[1750606641573,7.96,2195.1,2194.6,4.6022012]
[1750606641779,8.37254651,2195.0,2194.7,4.55634061]
[1750606641963,0.14254651,2194.9,2194.5,12.31104451]
[1750606642140,1.77045138,2194.8,2194.4,12.415]
[1750606642342,0.14255138,2194.7,2194.4,12.415]
[1750606642772,9.8559,2194.8,2194.4,12.415]
[1750606642970,0.14256106,2194.7,2194.4,12.415]
[1750606643178,9.8559,2194.8,2194.4,12.415]
[1750606643481,0.14256102,2194.7,2194.4,10.0]
[1750606643679,9.8559,2194.8,2194.4,11.91145937]
[1750606643990,0.14256083,2194.7,2194.4,11.91145937]
[1750606644192,9.8559,2194.8,2194.2,6.97233593]
[1750606644368,0.14256322,2194.7,2194.4,4.55695346]
[1750606644550,8.225,2194.7,2194.5,4.55665603]
[1750606644749,8.225,2194.9,2194.6,4.55646919]
[1750606645052,0.14255087,2194.8,2194.7,4.55639559]
[1750606645678,0.14255087,2194.8,2194.6,5.16531611]
[1750606645845,8.225,2194.9,2194.6,5.16531611]
[1750606646042,9.5879,2195.1,2194.8,10.0]
[1750606646242,1.5183,2195.4,2194.6,1.5515]
[1750606646443,0.14252931,2195.3,2194.7,0.0455591]
[1750606646663,0.14252931,2195.3,2194.2,2.415]
[1750606646664,0.14252931,2195.2,2194.1,13.16587524]
[1750606646870,1.66084338,2195.1,2194.4,4.55699176]
[1750606647048,0.14255739,2195.0,2194.3,14.5572359]
[1750606647252,8.36355739,2194.9,2194.3,14.5572359]
[1750606647492,0.14256369,2194.8,2194.2,16.10886783]
[1750606647719,0.14256369,2194.7,2194.2,10.0]
[1750606647909,0.14256369,2194.6,2194.2,10.0]
[1750606648079,0.14256369,2194.5,2194.2,10.0]
[1750606648278,2.35465637,2194.8,2194.0,0.033]
[1750606648279,8.22,2194.4,2194.0,0.033]
[1750606648620,0.14258927,2194.3,2194.0,0.033]
[1750606648770,1.5183,2194.1,2194.0,0.033]
[1750606648969,1.66088927,2194.1,2194.0,0.033]
[1750606649497,2.21088927,2194.1,2194.0,0.033]
[1750606649709,2.0683,2194.1,2194.0,0.033]
[1750606649892,1.5183,2193.9,2193.2,4.55946146]
[1750606650208,8.218,2193.8,2193.2,5.67316765]
[1750606650503,8.218,2193.8,2193.2,4.55946146]
[1750606650723,8.218,2193.8,2193.2,4.55949084]
[1750606650724,1.6064,2193.7,2193.2,4.55949084]
[1750606651022,1.6064,2193.7,2193.3,10.0]
[1750606651309,1.6064,2193.7,2193.2,14.55954638]
[1750606651469,1.6064,2193.7,2193.1,4.55967151]
[1750606651780,0.91378483,2193.6,2193.0,1.5515]
[1750606651981,0.91378483,2193.6,2193.2,4.55950178]
[1750606652205,0.91378483,2193.6,2193.2,10.0]
[1750606652403,0.91378483,2193.6,2192.9,4.55996879]
[1750606652790,2.1564,2193.5,2192.8,4.56037942]
[1750606652989,2.1564,2193.5,2192.9,4.56002268]
[1750606652990,0.30701848,2193.4,2192.9,4.56002268]
[1750606653192,8.215,2193.3,2193.0,10.0]
[1750606653398,8.215,2193.3,2192.9,4.56002268]
[1750606653591,8.215,2193.3,2193.0,10.0]
[1750606653807,8.215,2193.3,2193.0,14.55991146]
[1750606653981,8.74433789,2193.3,2192.7,1.5984]
[1750606654186,1.6064,2193.2,2192.7,4.56045837]
[1750606654384,1.6064,2193.2,2192.5,1.5984]
[1750606654782,8.74433789,2193.3,2192.4,4.56113189]
[1750606654783,0.55,2193.1,2192.4,4.56113189]
[1750606654993,1.6064,2193.0,2192.5,10.0]
[1750606655199,1.6064,2193.0,2192.3,14.56132837]
[1750606655403,1.6064,2193.0,2192.4,4.56117741]
[1750606655708,1.6064,2193.0,2192.4,0.91227505]
[1750606655881,1.6646,2194.2,2193.0,4.55996352]
[1750606656082,8.212,2194.1,2193.6,4.55860704]
[1750606656389,1.6646,2193.9,2193.4,4.55910242]
[1750606656589,1.6646,2193.9,2193.2,6.10154769]
[1750606656590,1.6646,2193.9,2193.3,4.55923176]
[1750606656791,1.6646,2193.9,2193.2,4.55946877]
[1750606657017,0.98766,2193.8,2192.9,1.542]
[1750606657184,1.6646,2193.6,2193.1,10.0]
[1750606657381,8.21,2193.5,2193.1,10.0]
[1750606657583,1.6646,2193.6,2193.1,10.0]
[1750606657825,8.21,2193.4,2193.1,10.0]
[1750606657982,8.21,2193.4,2193.0,10.0]
[1750606658185,8.21,2193.4,2193.0,14.5598172]
[1750606658383,1.6646,2193.6,2193.1,4.55974841]
[1750606658623,8.209,2193.5,2193.0,14.55989156]
[1750606658825,9.43536,2193.5,2193.1,4.55975559]
[1750606659316,9.43536,2193.5,2193.1,4.55972917]
[1750606659524,1.6646,2193.4,2192.8,0.45968403]
[1750606659684,1.6646,2193.4,2192.8,4.56023568]
[1750606660026,1.6646,2193.4,2192.9,10.0]
[1750606660205,1.6646,2193.2,2192.5,4.56083735]
[1750606660406,1.6646,2193.2,2192.4,4.56121145]
[1750606660407,0.55,2193.1,2192.4,4.56104886]
[1750606660721,1.6646,2192.9,2192.4,4.56121145]
[1750606660885,1.6646,2192.9,2192.5,10.0]
[1750606661517,1.6646,2192.9,2192.6,4.5607945]
[1750606661897,8.206,2192.8,2192.4,4.56121145]
[1750606662096,8.206,2192.8,2192.5,14.56085678]
[1750606662298,8.205,2192.7,2192.6,14.56077987]
[1750606663622,9.19196,2192.7,2192.1,4.56183568]
[1750606663832,9.19196,2192.7,2192.4,10.0]
[1750606664037,9.19196,2192.7,2192.1,4.56183568]
[1750606664038,9.19196,2192.7,2192.1,10.0]
[1750606664201,9.19196,2192.7,2192.1,14.5616777]
[1750606664402,0.919196,2192.6,2192.1,4.56182972]
[1750606664601,0.919196,2192.6,2192.3,4.56132296]
[1750606664805,1.6527,2192.5,2192.2,10.0]
[1750606665007,1.6527,2192.5,2191.8,1.5493]
[1750606665331,8.202,2192.5,2192.4,10.0]
[1750606665822,8.202,2192.5,2192.3,4.56130832]
[1750606665823,9.0222,2192.5,2192.1,4.56180976]
[1750606666025,1.5705,2192.4,2192.1,4.56180976]
[1750606666805,1.5705,2192.4,2192.2,4.56160975]
[1750606667527,8.202,2192.5,2192.2,4.56160975]
[1750606668550,0.55,2193.0,2192.3,4.56130256]
[1750606668711,0.55,2192.8,2192.0,10.0]
[1750606668910,1.5705,2192.7,2192.1,4.56171415]
[1750606669338,1.5705,2192.7,2192.2,4.5616189]
[1750606669637,1.5705,2192.7,2192.0,10.0]
[1750606669798,1.5705,2192.5,2191.9,10.0]
[1750606670004,8.196,2192.4,2191.9,10.0]
[1750606670440,8.196,2192.4,2192.0,4.56203467]
[1750606670638,8.196,2192.4,2191.9,14.56217446]
[1750606670936,8.196,2192.4,2192.0,4.56202482]
[1750606671144,0.97665,2192.3,2192.0,4.56202482]
[1750606671305,0.97665,2192.3,2191.9,14.56214435]
[1750606671500,0.97665,2192.3,2191.7,5.02513863]
[1750606671799,0.97665,2192.3,2191.8,0.04561934]
[1750606672000,1.6253,2193.0,2192.3,10.0]
[1750606672236,1.6253,2193.0,2192.5,1.6628]
[1750606672439,1.6253,2193.0,2192.6,4.56062812]
[1750606672840,1.6253,2193.0,2192.3,10.44535262]
[1750606672841,1.6253,2193.0,2192.3,4.56140129]
[1750606673037,1.6253,2193.0,2192.4,10.0]
[1750606673225,1.77793,2192.9,2192.4,10.0]
[1750606673402,1.6253,2192.8,2192.2,4.56155232]
[1750606673603,1.6253,2192.8,2191.9,13.16587524]
[1750606673604,8.192,2192.7,2191.9,4.56210038]
[1750606673809,1.6253,2192.6,2192.0,10.0]
[1750606674107,1.6253,2192.6,2192.1,10.0]
[1750606674312,0.96030013,2192.5,2192.1,10.0]
[1750606674937,0.96030013,2192.5,2191.9,14.56216157]
[1750606675132,0.96030013,2192.5,2192.1,10.0]
[1750606675533,0.96030013,2192.5,2191.9,10.0]
[1750606675848,0.96030013,2192.5,2192.0,4.56194462]
[1750606676008,0.25856001,2192.4,2192.0,4.56194462]
[1750606676215,8.19,2192.3,2192.0,4.56194462]
[1750606676639,8.19,2192.3,2191.9,14.56214004]
[1750606677051,8.19,2192.3,2192.0,4.56203941]
[1750606677220,1.5802,2193.0,2192.2,13.16587524]
[1750606677420,0.14271579,2192.9,2192.5,13.16587524]
[1750606677638,9.7672,2193.0,2192.6,4.56069043]
[1750606678017,0.14268665,2192.9,2192.2,1.5973]
[1750606678259,0.14270224,2192.8,2192.2,1.5973]
[1750606678442,0.14269931,2192.7,2192.4,10.0]
[1750606678616,0.55,2192.9,2192.2,11.5973]
[1750606678954,1.63042375,2192.8,2192.3,4.56139742]
[1750606679249,1.63042375,2192.8,2192.2,1.5973]
[1750606679250,0.14270104,2192.7,2192.2,1.5973]
[1750606679553,7.96,2192.9,2192.4,4.56111212]
[1750606679845,0.14269377,2192.8,2192.4,4.56111212]
[1750606680048,0.14269367,2192.7,2192.3,4.56131767]
[1750606680252,0.14269638,2192.6,2192.4,4.56119691]
[1750606680551,7.96,2192.9,2192.4,4.56119691]
[1750606680747,1.91541657,2192.8,2192.2,6.158832]
[1750606680951,1.91541657,2192.8,2192.2,11.5973]
[1750606680952,0.14270241,2192.7,2192.2,11.5973]
[1750606681247,0.14270241,2192.6,2192.2,14.56148066]
[1750606681462,0.14270241,2192.5,2192.3,4.56141951]
[1750606681612,8.182,2192.6,2192.3,4.56141951]
[1750606682065,8.182,2192.6,2192.4,4.56106911]
[1750606682218,8.182,2192.6,2192.2,10.0]
[1750606682415,7.96,2192.9,2192.5,10.0]
[1750606682628,0.14269426,2192.8,2192.7,4.5605874]
[1750606682843,7.96,2192.9,2192.7,4.5605874]
[1750606683150,0.14267636,2192.8,2192.5,14.56084621]
[1750606683325,7.96,2192.9,2192.5,14.56084621]
[1750606683652,0.14267575,2192.8,2192.6,4.56079256]
[1750606683849,7.96,2192.9,2192.6,4.56079256]
[1750606684150,0.14267475,2192.8,2192.7,4.56058713]
[1750606684355,1.6293,2193.3,2192.7,4.56058713]
[1750606684356,1.6293,2193.3,2193.0,4.55994934]
[1750606684580,8.32066197,2193.2,2192.9,1.5499]
[1750606684861,8.32066197,2193.2,2192.8,10.0]
[1750606684862,0.14266197,2193.1,2192.8,10.0]
[1750606685067,0.14266864,2193.0,2192.8,10.0]
[1750606685271,8.178,2193.2,2192.8,10.0]
[1750606685432,0.14266684,2193.1,2192.8,10.0]
[1750606685634,8.9958,2193.2,2192.5,1.5793]
[1750606685834,1.7274736,2193.1,2192.8,4.56036771]
[1750606686067,8.3176736,2193.0,2192.8,4.56036771]
[1750606686284,8.175,2193.1,2192.8,10.0]
[1750606686474,0.14266838,2193.0,2192.8,10.0]
[1750606686674,8.175,2193.1,2192.8,10.0]
[1750606686875,0.1426708,2193.0,2192.8,4.56037906]
[1750606687048,8.175,2193.1,2192.8,4.56037906]
[1750606687371,0.14266814,2193.0,2192.6,10.0]
[1750606687577,8.9925,2193.1,2192.6,14.56069234]
[1750606687757,0.14267451,2193.0,2192.6,14.56069234]
[1750606687964,8.9925,2193.1,2192.6,14.56069234]
[1750606688274,0.1426735,2193.0,2192.6,14.56069234]
[1750606688475,0.1426735,2192.9,2192.6,14.56069234]
[1750606688675,8.9925,2193.1,2192.6,10.0]
[1750606689082,0.14267477,2193.0,2192.6,10.0]
[1750606689373,8.9925,2193.1,2192.7,4.56048074]
[1750606689374,0.14267477,2192.9,2192.7,4.56048074]
[1750606689679,8.175,2193.1,2192.8,4.56026657]
[1750606689846,2.1348,2193.5,2192.5,1.5793]
[1750606689847,0.14266967,2193.0,2192.9,4.60568166]
[1750606690041,1.5848,2193.5,2192.9,0.46056817]
[1750606690269,0.14265572,2193.4,2193.0,4.55979106]
[1750606690465,0.14265572,2193.3,2193.1,4.60532679]
[1750606690678,0.14265243,2193.2,2193.1,4.55975559]
[1750606690842,1.5848,2193.5,2193.1,4.55975559]
[1750606691042,0.14264932,2193.4,2193.1,0.04559268]
[1750606691243,1.5848,2193.7,2193.1,1.16248927]
[1750606691479,0.14264634,2193.6,2193.0,4.55985591]
[1750606691677,0.14264634,2193.5,2193.0,4.55994863]
[1750606691880,0.14264634,2193.4,2193.1,4.55965575]
[1750606692179,0.14264634,2193.3,2193.0,4.55990835]
[1750606692380,8.166,2193.6,2192.9,11.5793]
[1750606692381,8.166,2193.6,2193.1,4.55966468]
[1750606692540,8.166,2193.6,2192.9,16.1394272]
[1750606692541,0.14264936,2193.5,2193.0,4.55988945]
[1750606692882,0.14264861,2193.4,2193.1,4.55964716]
[1750606693176,8.166,2193.6,2193.2,4.55941197]
[1750606693377,0.14264522,2193.5,2193.2,4.55941197]
[1750606693542,0.14264522,2193.4,2193.2,0.04559078]
[1750606693743,1.5848,2193.7,2192.9,1.5793]
[1750606693938,1.11763265,2193.6,2192.9,6.13934431]
[1750606694180,0.14265265,2193.5,2192.9,1.5793]
[1750606694363,0.14265265,2193.4,2193.0,4.55981761]
[1750606694569,0.97498,2193.6,2193.0,4.55981761]
[1750606694766,0.14265044,2193.5,2192.9,6.13937702]
[1750606694977,0.14265044,2193.4,2192.9,6.13937702]
[1750606695393,0.14265044,2193.4,2193.0,4.55995241]
[1750606695906,0.27024304,2193.5,2193.0,4.55995241]
[1750606696046,0.14265033,2193.4,2193.0,4.55995241]
[1750606696245,0.27024304,2193.5,2193.0,4.55995241]
[1750606697068,0.27024304,2193.5,2192.9,1.5793]
[1750606697382,0.14265495,2193.4,2192.9,6.13945145]
[1750606697582,0.27024304,2193.5,2192.9,6.13945145]
[1750606697755,0.14265899,2193.4,2192.9,6.13945145]
[1750606697966,0.27024304,2193.5,2192.9,6.13945145]
[1750606698179,0.1426592,2193.4,2192.9,6.13945145]
[1750606698385,0.27024304,2193.5,2192.9,6.13945145]
[1750606698685,1.75935991,2193.4,2192.8,4.56037478]
[1750606698864,1.6167,2193.4,2192.6,1.5277]
[1750606699069,0.1426615,2193.3,2192.8,4.56036523]
[1750606699267,1.01846045,2193.3,2192.8,4.56036523]
[1750606699592,1.01846045,2193.3,2192.9,10.0]
[1750606699747,1.01846045,2193.3,2192.8,10.0]
[1750606699950,1.6167,2193.6,2193.2,4.55945122]
[1750606700151,0.14264482,2193.5,2193.1,4.55960115]
[1750606700385,1.6167,2193.6,2193.2,4.55952365]
[1750606700555,1.6167,2193.6,2193.0,6.08756965]
[1750606700556,0.14264643,2193.5,2193.1,4.60525501]
[1750606700896,1.6167,2193.6,2193.2,4.559449]
[1750606701190,0.14264517,2193.5,2193.2,4.559449]
[1750606701361,1.6167,2193.6,2193.3,4.55933334]
[1750606701566,0.14264514,2193.5,2193.1,4.55968753]
[1750606701878,1.6167,2193.6,2193.2,4.55942382]
[1750606702203,9.7963,2193.9,2193.3,14.60482049]
[1750606702352,0.14263583,2193.8,2193.3,14.55922953]
[1750606702552,0.14263583,2193.7,2193.3,14.55922953]